[Event "Germany Countries-chT Youth 2022"]
[Site "Wiesbaden"]
[Date "2022.10.02"]
[Round "4"]
[White "Falke, Ornella"]
[Black "Kempe, Caius Emilian"]
[Result "1-0"]
[ECO "C12"]
[WhiteElo "1953"]
[BlackElo "2030"]
[Annotator "TA"]
[PlyCount "115"]
[EventDate "2022.09.28"]
[EventType "team-tourn"]
[EventRounds "7"]
[EventCountry "GER"]
[SourceTitle "playchess.com"]
[Source "ChessBase"]
[SourceQuality "1"]
[TimeControl "40/5400+30:1800+30"]

{[%evp 15,115,-16,-16,-19,-16,-19,-24,-24,-27,-27,0,-58,0,-52,-12,-87,0,0,0,0,0,0,0,0,0,-70,-57,-80,-43,-43,-38,-28,-26,-129,-125,-263,-256,-248,-248,-264,-259,-244,-222,-242,-184,-206,-210,-208,-189,-281,-228,-233,-232,-257,-240,-344,-355,-327,-316,-342,-333,-310,-291,-297,-152,-620,-613,-583,-295,-298,-252,-250,-15,-15,-15,-16,103,102,102,104,111,104,104,111,111,111,111,111,148,8,82,6,6,0,0,0,0,0,29971,29951,1625,31]} 1. e4 {[%emt 0:00:02]} e6 {[%emt 0:00:06]} 2. d4 {[%emt 0:00:09]} d5 {[%emt 0:00:05]} 3. Nc3 {[%emt 0:00:08]} Nf6 {[%emt 0:00:05]} 4. Bg5 {[%emt 0:00:15]} Bb4 {[%emt 0:00:15]} 5. e5 {[%emt 0:00:20]} h6 {[%emt 0:00:06]} 6. Bd2 {[%emt 0:00:15]} Bxc3 {[%emt 0:00:07]} 7. bxc3 {[%emt 0:00:07]} Ne4 {[%emt 0:00:06]} 8. Qg4 {[%emt 0:00:31] 8.Bc1 is the fancy move.} Kf8 {[%emt 0:00:11]} 9. Qf4 {[%emt 0:01:56] C12: French: Classical System: McCutcheon Variation.} c5 {[%emt 0:03:54]} 10. Bd3 {[%emt 0:00:31]} Nxd2 {[%emt 0:00:07]} 11. Qxd2 {[%emt 0:00:10] Black has an edge.} Nc6 {[%emt 0:00:15]} 12. Nf3 {[%emt 0:01:55]} Qa5 {[%emt 0:01:33]} 13. h4 {[%emt 0:17:38]} (13. dxc5 $11 Qxc5 14. O-O) 13... Bd7 {[%emt 0:02:04] [#]} (13... c4 $15 14. Be2 Kg8) 14. Rb1 $146 {[%emt 0:05:29]} (14. dxc5 $11 Qxc5 15. O-O) ({Predecessor:} 14. h5 Rc8 15. a3 cxd4 16. cxd4 Qxd2+ 17. Kxd2 Na5 18. Rh4 Nc4+ 19. Bxc4 Rxc4 20. Rg4 {1-0 (44) Bozkurt,I (2173)-Kaufman,L (2320) ICC INT 2014}) 14... Rb8 {[%emt 0:00:18]} 15. h5 {[%emt 0:09:42]} (15. dxc5 $11 Qxa2 16. O-O) 15... cxd4 {[%emt 0:02:24]} ({Reject} 15... Qxa2 $6 16. O-O Qa5 17. dxc5 $11) ({Better is} 15... c4 $17 16. Be2 Qxa2) 16. cxd4 $11 {[%emt 0:00:35]} Qxd2+ {[%emt 0:00:40]} 17. Kxd2 {[%emt 0:00:12]} Na5 {[%emt 0:00:04]} 18. Rb4 {[%emt 0:01:01]} Ke7 {[%emt 0:00:56]} 19. Rhb1 {[%emt 0:07:49]} Rhc8 {[%emt 0:04:08]} 20. Ke3 {[%emt 0:18:46]} (20. c3 $11) 20... Rc3 $15 {[%emt 0:03:13]} 21. Nd2 {[%emt 0:01:03]} b6 {[%emt 0:00:32]} 22. Rc1 {[%emt 0:06:22]} Rbc8 {[%emt 0:02:02]} 23. Nb1 $1 {[%emt 0:00:40] Prevents Ra3.} R3c7 {[%emt 0:00:08]} 24. a4 {[%emt 0:04:04]} (24. g4 $11 {keeps the balance.}) 24... Nc4+ $17 {[%emt 0:01:46]} 25. Ke2 {[%emt 0:00:40]} (25. Bxc4 $17 Rxc4 26. Rxc4 Rxc4 27. a5) 25... a5 $19 {[%emt 0:00:16]} 26. Rb3 {[%emt 0:03:09]} Bxa4 {[%emt 0:00:29]} 27. Bxc4 {[%emt 0:00:44]} Rxc4 {[%emt 0:00:22]} 28. Rxb6 {[%emt 0:00:25]} Rxd4 {[%emt 0:00:29]} 29. Rb7+ {[%emt 0:01:13]} Bd7 {[%emt 0:00:08]} 30. f3 {[%emt 0:01:01]} Rdc4 {[%emt 0:00:48]} 31. Kd2 {[%emt 0:00:56]} f6 {[%emt 0:00:49]} 32. Na3 {[%emt 0:01:21]} (32. exf6+ $142 gxf6 33. Ra7) 32... Ra4 {[%emt 0:00:14]} 33. exf6+ {[%emt 0:00:29]} gxf6 {[%emt 0:00:01]} 34. Rb3 {[%emt 0:00:56]} e5 {[%emt 0:00:29]} 35. Nb5 {[%emt 0:01:37]} (35. c3 {might work better.}) 35... Rb4 {[%emt 0:06:09]} 36. Nc3 {[%emt 0:01:16]} Rd4+ {[%emt 0:02:51]} 37. Ke2 {[%emt 0:01:08]} a4 {[%emt 0:00:41]} 38. Ra3 {[%emt 0:00:09]} Ke6 {[%emt 0:04:02]} 39. Rb1 {[%emt 0:03:33]} Rh4 {[%emt 0:01:57]} (39... Rdc4 $19 40. Rb6+ R8c6 41. Rxc6+ Bxc6) 40. g4 $2 {[%emt 0:04:58]} (40. Rb6+ $17 Rc6 41. Rxa4 Rxb6 42. Rxh4) 40... Rh2+ {[%emt 0:00:18]} 41. Kd3 {[%emt 0:31:03]} Rc4 {[%emt 0:37:25]} 42. Rb6+ {[%emt 0:01:09]} Bc6 {[%emt 0:00:07]} 43. Rxa4 {[%emt 0:04:44]} e4+ $2 {[%emt 0:00:24]} (43... Rc5 $19 {Threatens to win with ...Rf2.} 44. Ne2 Rh3) 44. Nxe4 $1 $11 {[%emt 0:00:00]} Rxa4 {[%emt 0:00:00]} 45. Rxc6+ {[%emt 0:00:00][%mdl 4096] Endgame KRR-KRN} Kd7 {[%emt 0:00:00]} (45... Ke5 $11 {remains equal.} 46. Nxf6 Ra7) 46. Rd6+ $16 {[%emt 0:00:00]} Ke7 {[%emt 0:00:00]} 47. Rxd5 {[%emt 0:00:00]} Rh1 {[%emt 0:00:00]} 48. Ke3 {[%emt 0:00:00]} Rc4 {[%emt 0:00:00]} 49. c3 {[%emt 0:00:00]} Rc1 {[%emt 0:00:00]} 50. Rd3 {[%emt 0:00:00]} Rc6 {[%emt 0:00:00]} 51. Kf4 {[%emt 0:00:00]} Ke6 {[%emt 0:00:00] [#]} 52. Re3 {[%emt 0:00:00] White is more active.} ({White should play} 52. Rd8 $1 $16) 52... Kf7 {[%emt 0:00:00] [#]} (52... Rc4 $11) 53. Kf5 {[%emt 0:00:00]} (53. Re2 $1 $16) 53... Rd1 $1 $11 {[%emt 0:00:00]} 54. c4 {[%emt 0:00:00]} Rxc4 {[%emt 0:07:35]} 55. Nxf6 {[%emt 0:00:00]} Rc5+ {[%emt 0:00:08]} 56. Re5 {[%emt 0:00:00]} Rf1 $2 {[%emt 0:03:58][%mdl 8192]} 57. Rxc5 {[%emt 0:00:00]} Rxf3+ {[%emt 0:00:16]} 58. Ke4 $2 {White used his chance.  Weighted Error Value: White=0.44/Black=0.50} ({White has to play} 58. Ke5 $18 Ra3 59. g5 Re3+ 60. Ne4 hxg5 61. Rc7+ Ke8 62. h6) 1-0

[Event "Germany Countries-chT Youth 2022"]
[Site "Wiesbaden"]
[Date "2022.10.02"]
[Round "4"]
[White "Möller, Maurin"]
[Black "Stichter, Constantin Paul"]
[Result "1-0"]
[ECO "C02"]
[WhiteElo "1936"]
[BlackElo "1620"]
[Annotator "TA"]
[PlyCount "71"]
[EventDate "2022.09.28"]
[EventType "team-tourn"]
[EventRounds "7"]
[EventCountry "GER"]
[SourceTitle "playchess.com"]
[Source "ChessBase"]
[SourceQuality "1"]
[TimeControl "40/5400+30:1800+30"]

{[%evp 11,71,0,0,0,0,-43,9,-42,43,-27,-23,-57,-31,-68,-31,-54,-52,-54,-54,-54,-52,-42,-39,-57,-43,-50,-53,-80,0,0,0,-20,-31,-62,-46,-95,-80,-80,36,26,4,14,75,58,81,92,100,73,105,-45,68,-50,497,383,498,514,464,466,349,347,29997,29998]} 1. e4 {[%emt 0:00:04]} e6 {[%emt 0:00:01]} 2. d4 {[%emt 0:00:06]} d5 {[%emt 0:00:04]} 3. e5 {[%emt 0:00:10]} c5 {[%emt 0:00:04]} 4. c3 {[%emt 0:00:04]} Nc6 {[%emt 0:00:04]} 5. Nf3 {[%emt 0:00:08]} Bd7 {[%emt 0:00:10]} 6. Bd3 {[%emt 0:00:53]} Rc8 {[%emt 0:00:30]} 7. a3 {[%emt 0:01:31] C02: French: Advance Variation.} cxd4 {[%emt 0:07:24]} 8. O-O {[%emt 0:02:56]} Nge7 {[%emt 0:04:15]} (8... dxc3 $15 9. Nxc3 Nge7) 9. Re1 {[%emt 0:03:44]} (9. cxd4 $11 Qb6 10. Bc2) 9... Ng6 {[%emt 0:02:25] [#]} (9... dxc3 $15 10. Nxc3 Ng6) 10. g3 $146 {[%emt 0:05:53]} (10. cxd4 $14 Qb6 11. Bc2) ({Predecessor:} 10. cxd4 Nh4 11. Nbd2 Nxf3+ 12. Nxf3 Qb6 13. Be3 Qxb2 14. Ng5 h6 15. Qh5 Nd8 16. Nxf7 Nxf7 {1-0 (51) Waldschmidt,G-Haase,P Germany 1995}) 10... dxc3 $11 {[%emt 0:06:47]} 11. Nxc3 {[%emt 0:01:16]} Qc7 {[%emt 0:04:42]} 12. Qe2 {[%emt 0:05:53]} Bc5 {[%emt 0:14:04]} 13. b4 {[%emt 0:04:45] Black must now prevent Nb5.} Nd4 {[%emt 0:03:11]} 14. Nxd4 {[%emt 0:08:53][%mdl 64] [#] Remove Defender} Bxd4 {[%emt 0:01:31][%mdl 64] Discovered Attack} 15. Nb5 {[%emt 0:01:41]} Bxb5 {[%emt 0:14:41]} ({But not} 15... Qxe5 16. Nxd4 Qxd4 17. Bb2 $14) 16. Bxb5+ {[%emt 0:00:07]} Kf8 {[%emt 0:01:52]} 17. Bb2 {[%emt 0:01:01]} Bxb2 {[%emt 0:00:25]} 18. Qxb2 {[%emt 0:00:01]} Ke7 {[%emt 0:01:35]} 19. h4 {[%emt 0:07:13]} Rhd8 {[%emt 0:15:50]} (19... Qc2 $17 20. Qxc2 Rxc2) 20. h5 {[%emt 0:09:46]} Nf8 {[%emt 0:00:23]} 21. Qd4 {[%emt 0:10:47]} a6 {[%emt 0:08:49]} 22. Bd3 {[%emt 0:04:29]} Qc3 {[%emt 0:03:27]} 23. Qh4+ {[%emt 0:00:31]} (23. Qe3 $15 {should be considered.}) 23... Ke8 $17 {[%emt 0:00:59]} 24. Rad1 {[%emt 0:00:12]} Qc6 {[%emt 0:06:56]} ({Stronger than} 24... Qxa3 25. Kg2) (24... Qb3 $17 25. b5 Qxa3) 25. Qg5 $36 {[%emt 0:01:48][%mdl 2048] White fights for an advantage.} g6 {[%emt 0:00:27]} 26. b5 {[%emt 0:00:02]} Qc5 {[%emt 0:00:48]} (26... Qb6 $1 $11) 27. bxa6 $16 {[%emt 0:01:24]} bxa6 {[%emt 0:00:08]} 28. Bxa6 {[%emt 0:00:06] Threatens to win with Rc1.} Ra8 {[%emt 0:00:46] [#]} 29. Bb7 {[%emt 0:05:26] Rc1 is the strong threat. White is more active.} Ra4 {[%emt 0:01:13]} 30. h6 {[%emt 0:01:41]} (30. Rc1 $16 Rc4 31. Ba6) 30... Rc4 {[%emt 0:00:54]} ({Black should try} 30... Qc7 $15 31. Rb1 Nd7) 31. Rc1 {[%emt 0:02:56]} ({Better is} 31. Ba6 $1 $14) 31... d4 $2 {[%emt 0:00:56][%mdl 8192] Loses the game.} (31... Nd7 $1 $15 {stays ahead.} 32. Rxc4 dxc4) 32. Rxc4 $18 {[%emt 0:00:24]} Qxc4 {[%emt 0:00:01]} 33. Rc1 {[%emt 0:00:08]} Qd3 {[%emt 0:00:57]} 34. Rc7 {[%emt 0:00:25][%csl Gc7][%cal Rg5e7]} Nd7 {[%emt 0:00:25]} 35. Bc6 {[%emt 0:00:09] Bxd7+ would kill now. Really sharp!} Qf5 $2 {[%emt 0:00:29]} (35... Qb1+ $18 36. Kh2 Qb6 37. Bxd7+ Rxd7 38. Rc8+ Rd8 39. Rxd8+ Qxd8 40. Qxd8+ Kxd8) 36. Bxd7+ {[%emt 0:00:10] Weighted Error Value: White=0.28 (precise) /Black=0.61} 1-0

[Event "Germany Countries-chT Youth 2022"]
[Site "Wiesbaden"]
[Date "2022.10.02"]
[Round "4"]
[White "Haubold, Christian Lucas"]
[Black "Aniol, Nico"]
[Result "1-0"]
[ECO "B15"]
[WhiteElo "1888"]
[BlackElo "1541"]
[Annotator "NA RC COMBH"]
[PlyCount "153"]
[EventDate "2022.09.28"]
[EventType "team-tourn"]
[EventRounds "7"]
[EventCountry "GER"]
[SourceTitle "playchess.com"]
[Source "ChessBase"]
[SourceQuality "1"]
[TimeControl "40/5400+30:1800+30"]

1. e4 {[%emt 0:00:03]} c6 {[%emt 0:00:30]} 2. d4 {[%emt 0:00:16]} d5 {[%emt 0:00:33]} 3. Nc3 {[%emt 0:00:23]} dxe4 {[%emt 0:00:48]} 4. Nxe4 {[%emt 0:00:17]} Nf6 {[%emt 0:00:52]} 5. Nxf6+ {[%emt 0:00:50]} exf6 {[%emt 0:00:05]} 6. Bc4 {[%emt 0:01:09]} Bd6 {[%emt 0:00:45]} 7. c3 {[%emt 0:01:13]} O-O {[%emt 0:00:16]} 8. Qc2 {[%emt 0:01:01]} Re8+ {[%emt 0:01:27]} 9. Ne2 {[%emt 0:00:36]} h5 {[%emt 0:02:04]} 10. Qg6 {[%emt 0:03:33]} Be6 {[%emt 0:05:33]} 11. Bxe6 {[%emt 0:00:27]} Rxe6 {[%emt 0:00:11]} 12. Qxh5 {[%emt 0:00:14]} Qe7 {[%emt 0:01:10]} 13. Be3 {[%emt 0:00:55]} Nd7 {[%emt 0:01:41]} 14. Ng3 {[%emt 0:10:10]} g6 {[%emt 0:04:17]} 15. Qg4 {[%emt 0:07:04]} Kf8 {[%emt 0:10:37]} (15... Nb6 $1 $11 {keeps the balance.}) 16. O-O-O {[%emt 0:11:02]} Ke8 {[%emt 0:03:22]} 17. Kb1 {[%emt 0:06:16]} Nb6 {[%emt 0:05:40]} 18. Bf4 {[%emt 0:06:04]} f5 {[%emt 0:12:12]} 19. Bxd6 {[%emt 0:04:31]} Qxd6 {[%emt 0:00:10]} 20. Qf3 {[%emt 0:01:21]} Qd5 {[%emt 0:02:23]} 21. Qxd5 {[%emt 0:08:09]} Nxd5 {[%emt 0:00:29]} 22. Rde1 {[%emt 0:01:10]} Nf4 {[%emt 0:01:44]} 23. Rxe6+ {[%emt 0:00:25]} fxe6 {[%emt 0:00:19]} 24. Rg1 {[%emt 0:00:33]} Kf7 {[%emt 0:01:08]} 25. Kc2 {[%emt 0:02:07]} Re8 {[%emt 0:00:30]} 26. Nh1 {[%emt 0:11:21]} e5 {[%emt 0:02:47]} 27. dxe5 {[%emt 0:09:05]} Rxe5 {[%emt 0:00:18]} 28. Ng3 {[%emt 0:01:13]} Kf6 {[%emt 0:04:17]} 29. Kd2 {[%emt 0:06:59]} Ra5 {[%emt 0:01:44]} 30. a3 {[%emt 0:00:12]} Rb5 {[%emt 0:00:05]} 31. Kc2 {[%emt 0:01:05]} Re5 {[%emt 0:01:16]} 32. f3 {[%emt 0:00:58]} Re7 {[%emt 0:03:24]} 33. Kd2 {[%emt 0:01:55]} Re5 {[%emt 0:01:05]} 34. Kc2 {[%emt 0:01:15]} Re7 {[%emt 0:00:14]} 35. Kd2 {[%emt 0:00:33]} Re5 {[%emt 0:00:11]} 36. h3 {[%emt 0:01:50]} Rb5 {[%emt 0:00:19]} 37. Kc2 {[%emt 0:00:42]} Re5 {[%emt 0:00:04]} 38. Kd2 {[%emt 0:00:57]} Rb5 {[%emt 0:00:05]} 39. Kc2 {[%emt 0:01:19]} Re5 {[%emt 0:00:04]} 40. b4 {[%emt 0:00:33]} b5 {[%emt 0:00:31]} 41. Kd2 {[%emt 0:20:04]} Kg5 {[%emt 0:00:39]} 42. Kc2 {[%emt 0:03:55]} Kh4 {[%emt 0:00:32]} 43. Nxf5+ {[%emt 0:01:14]} gxf5 {[%emt 0:00:55]} 44. g3+ {[%emt 0:00:17]} Kg5 {[%emt 0:00:22]} 45. h4+ {[%emt 0:00:36]} Kh5 {[%emt 0:00:03]} 46. gxf4 {[%emt 0:00:05]} Re3 {[%emt 0:00:19]} 47. Rg5+ {[%emt 0:00:19]} Kxh4 {[%emt 0:00:06]} 48. Rxf5 {[%emt 0:00:13]} Re6 {[%emt 0:00:55]} 49. Re5 {[%emt 0:02:11]} Rf6 {[%emt 0:00:19]} 50. f5 {[%emt 0:00:15]} Kg3 {[%emt 0:00:32]} 51. Re6 {[%emt 0:00:15]} Rxf5 {[%emt 0:00:08]} 52. Rxc6 {[%emt 0:00:26]} Rf7 {[%emt 0:01:33]} 53. Kd3 {[%emt 0:01:49]} Kxf3 {[%emt 0:00:10]} 54. Kd4 {[%emt 0:00:18]} Ke2 {[%emt 0:01:17]} 55. Kc5 $2 {[%emt 0:00:48]} (55. c4 $18) 55... Rb7 $2 {[%emt 0:00:09]} (55... Rf5+ {is a better defense.} 56. Kd6 Kd3) 56. Ra6 {[%emt 0:00:36]} (56. Rd6 $142 Rb8 57. Kc6) 56... Kd3 {[%emt 0:00:07]} 57. Kc6 {[%emt 0:01:33]} Rh7 {[%emt 0:00:04]} 58. Kxb5 {[%emt 0:00:30]} Kxc3 {[%emt 0:00:06]} 59. Rg6 {[%emt 0:00:36]} Kd4 {[%emt 0:00:50]} 60. a4 {[%emt 0:01:01]} Rb7+ {[%emt 0:00:25]} 61. Ka5 {[%emt 0:00:15]} Kd5 {[%emt 0:00:34]} 62. b5 {[%emt 0:00:18]} Rh7 {[%emt 0:01:25]} 63. Ka6 {[%emt 0:00:23]} (63. Rc6 $142 Ke5 64. Ka6 Rg7 65. a5 Rh7 66. Rc8 Kd6 67. Rb8 Rh3 68. Rb7) 63... Kc5 {[%emt 0:01:27]} 64. a5 {[%emt 0:00:37]} Rf7 {[%emt 0:00:44]} 65. Rc6+ {[%emt 0:00:33]} Kd5 {[%emt 0:00:44]} 66. Rc8 {[%emt 0:00:16]} Kd6 {[%emt 0:01:35]} 67. Ra8 {[%emt 0:00:43]} Kc5 {[%emt 0:02:15]} 68. Rxa7 {[%emt 0:00:19]} Rf5 {[%emt 0:01:11]} 69. Rh7 {[%emt 0:00:56]} Kb4 {[%emt 0:00:34]} 70. Rh4+ {[%emt 0:00:06]} Kc5 {[%emt 0:00:03]} 71. b6 {[%emt 0:00:11]} Rf6 {[%emt 0:00:34]} 72. Ka7 {[%emt 0:00:35]} Rf7+ {[%emt 0:00:30]} 73. b7 {[%emt 0:00:07]} Kc6 {[%emt 0:00:04]} 74. a6 {[%emt 0:00:10]} Rg7 {[%emt 0:00:16]} 75. Ka8 {[%emt 0:00:20]} Rg8+ {[%emt 0:00:15]} 76. b8=Q {[%emt 0:00:09]} Rxb8+ {[%emt 0:00:08]} 77. Kxb8 {[%emt 0:00:06]} 1-0

[Event "Germany Countries-chT Youth 2022"]
[Site "Wiesbaden"]
[Date "2022.10.02"]
[Round "4"]
[White "Herrmann, Jakob"]
[Black "Hubert, Charlotte"]
[Result "1/2-1/2"]
[ECO "B20"]
[WhiteElo "1888"]
[BlackElo "1671"]
[Annotator "NA RC COMBH"]
[PlyCount "126"]
[EventDate "2022.09.28"]
[EventType "team-tourn"]
[EventRounds "7"]
[EventCountry "GER"]
[SourceTitle "playchess.com"]
[Source "ChessBase"]
[SourceQuality "1"]
[TimeControl "40/5400+30:1800+30"]

1. e4 {[%emt 0:00:04]} c5 {[%emt 0:00:08]} 2. Ne2 {[%emt 0:00:13]} Nf6 {[%emt 0:00:32]} 3. Nbc3 {[%emt 0:00:10]} d5 {[%emt 0:01:26]} 4. exd5 {[%emt 0:01:43]} Nxd5 {[%emt 0:00:12]} 5. d4 {[%emt 0:02:48]} Nxc3 {[%emt 0:03:54]} 6. bxc3 {[%emt 0:00:18]} g6 {[%emt 0:02:18]} 7. Ba3 {[%emt 0:02:40]} Nd7 {[%emt 0:09:29]} ({Better is} 7... Bg7 $17) 8. Qd2 {[%emt 0:11:52] [#]} ({Better is} 8. dxc5 $15 Bg7 9. g3) 8... Bg7 {[%emt 0:04:34]} (8... Qa5 $1 $17 {[%cal Ra5a3]} 9. Bb2 Bg7) 9. g3 {[%emt 0:01:04]} (9. dxc5 $15 O-O 10. Nd4) 9... O-O {[%emt 0:04:02]} 10. Bg2 {[%emt 0:00:45]} Qa5 {[%emt 0:04:25]} 11. Bb2 {[%emt 0:00:27]} ({White should play} 11. Bxc5 Nxc5 12. dxc5) 11... Nb6 {[%emt 0:05:14]} 12. Bc1 {[%emt 0:19:27]} Rd8 {[%emt 0:08:24]} 13. O-O {[%emt 0:03:17]} Bg4 {[%emt 0:16:29]} 14. Re1 {[%emt 0:13:56]} Rac8 {[%emt 0:08:24]} 15. Bxb7 {[%emt 0:05:53]} Rc7 {[%emt 0:02:04]} 16. Qf4 {[%emt 0:00:14]} Rxb7 {[%emt 0:01:23]} 17. Qxg4 {[%emt 0:00:10]} cxd4 {[%emt 0:01:33]} 18. Rd1 {[%emt 0:01:08]} Rc7 {[%emt 0:05:03]} 19. Bf4 {[%emt 0:02:50]} Rc4 {[%emt 0:02:48]} 20. cxd4 {[%emt 0:03:11]} Rxc2 {[%emt 0:01:46]} 21. Rac1 {[%emt 0:03:22]} Rdc8 {[%emt 0:07:53]} 22. Bd2 {[%emt 0:05:13]} Qxa2 {[%emt 0:05:09]} 23. Nc3 {[%emt 0:00:20]} Qb3 {[%emt 0:00:23]} 24. Rb1 {[%emt 0:08:10]} Qc4 {[%emt 0:00:22]} 25. Nb5 {[%emt 0:01:44]} Qa4 {[%emt 0:01:06]} 26. Qg5 {[%emt 0:05:19]} Bf6 {[%emt 0:00:56]} 27. Qe3 $2 {[%emt 0:00:42]} (27. Qg4) 27... Nc4 {[%emt 0:01:31]} 28. Qe2 {[%emt 0:01:42]} Nxd2 {[%emt 0:00:38]} 29. Rxd2 {[%emt 0:00:10]} Rxd2 {[%emt 0:00:08]} 30. Qxd2 {[%emt 0:00:06]} a6 {[%emt 0:00:32]} 31. Nc3 {[%emt 0:02:33]} Qxd4 {[%emt 0:00:09]} 32. Qxd4 {[%emt 0:00:13]} Bxd4 {[%emt 0:00:02]} 33. Ne2 {[%emt 0:00:42]} Bf6 {[%emt 0:00:10]} 34. Rb6 {[%emt 0:01:23]} Rc2 {[%emt 0:00:52]} 35. Kf1 {[%emt 0:00:20]} Ra2 {[%emt 0:00:07]} 36. h4 {[%emt 0:01:41]} a5 {[%emt 0:01:16]} 37. Ra6 {[%emt 0:00:06]} h5 {[%emt 0:01:18]} 38. Ke1 {[%emt 0:01:15]} Kg7 {[%emt 0:00:42]} 39. Kf1 {[%emt 0:01:14]} Kh6 {[%emt 0:00:39]} 40. Ra7 $1 $11 {[%emt 0:01:02] and White is okay.} Ra1+ {[%emt 0:01:05]} (40... a4 41. f4) 41. Kg2 {[%emt 0:30:08]} Ra2 $2 {[%emt 0:07:53]} (41... Kg7 $19 42. Kf3 a4) 42. Kf3 $2 {[%emt 0:00:00]} g5 {[%emt 0:02:11]} 43. hxg5+ {[%emt 0:00:00]} Kxg5 {[%emt 0:00:25]} 44. Rc7 {[%emt 0:00:00]} a4 {[%emt 0:08:11]} 45. Nf4 {[%emt 0:00:00]} a3 {[%emt 0:03:53]} 46. Rc5+ {[%emt 0:00:00]} e5 {[%emt 0:00:18]} 47. Ra5 {[%emt 0:00:00]} Bg7 {[%emt 0:01:16]} 48. Nd3 {[%emt 0:00:00]} f6 {[%emt 0:01:53]} 49. Nf4 {[%emt 0:00:00]} Bh6 {[%emt 0:05:15]} 50. Ke4 {[%emt 0:00:00]} Kg4 {[%emt 0:02:29]} 51. f3+ {[%emt 0:00:00]} Kxg3 {[%emt 0:00:11]} ({Don't go for} 51... Kg5 $2 52. Nd5 $19) 52. Nxh5+ {[%emt 0:00:00] [#]} Kf2 $2 {[%emt 0:00:08]} (52... Kg2 $1 $19 {and Black stays clearly on top.} 53. Nxf6 Re2+ 54. Kf5 Bc1) 53. Nxf6 {[%emt 0:00:00]} Bf4 {[%emt 0:00:53]} 54. Ng4+ {[%emt 0:00:00]} (54. Nd5 $17) 54... Kg3 {[%emt 0:00:13]} 55. Ne3 {[%emt 0:00:00]} Kf2 {[%emt 0:01:48]} 56. Ng4+ {[%emt 0:00:00]} Kg3 {[%emt 0:00:43]} 57. Ne3 {[%emt 0:00:00]} Ra1 $2 {[%emt 0:01:34]} (57... Bxe3 $19 58. Kxe5 Ra1) 58. Nc2 {[%emt 0:00:00]} Rc1 {[%emt 0:00:08]} 59. Nxa3 {[%emt 0:00:00]} Rc3 {[%emt 0:00:08]} 60. Ra4 {[%emt 0:00:00]} Re3+ {[%emt 0:00:21]} 61. Kf5 {[%emt 0:00:00]} Kxf3 $11 {[%emt 0:00:36]} 62. Nc4 {[%emt 0:00:00]} Re2 {[%emt 0:00:49]} 63. Nd6 {[%emt 0:00:00]} Rd2 {[%emt 0:00:36]} 1/2-1/2

[Event "Germany Countries-chT Youth 2022"]
[Site "Wiesbaden"]
[Date "2022.10.02"]
[Round "4"]
[White "Neuhoff, Laertes"]
[Black "Malinowsky, Levi"]
[Result "1/2-1/2"]
[ECO "B99"]
[WhiteElo "1885"]
[BlackElo "1879"]
[Annotator "NA RC COMBH"]
[PlyCount "106"]
[EventDate "2022.09.28"]
[EventType "team-tourn"]
[EventRounds "7"]
[EventCountry "GER"]
[SourceTitle "playchess.com"]
[Source "ChessBase"]
[SourceQuality "1"]
[TimeControl "40/5400+30:1800+30"]

1. e4 {[%emt 0:00:00]} c5 {[%emt 0:00:08]} 2. Nf3 {[%emt 0:00:05]} d6 {[%emt 0:00:07]} 3. d4 {[%emt 0:00:04]} cxd4 {[%emt 0:00:03]} 4. Nxd4 {[%emt 0:00:06]} Nf6 {[%emt 0:00:02]} 5. Nc3 {[%emt 0:00:01]} a6 {[%emt 0:00:12]} 6. Bg5 {[%emt 0:00:11]} e6 {[%emt 0:00:13]} 7. f4 {[%emt 0:00:06]} Be7 {[%emt 0:00:05]} 8. Qf3 {[%emt 0:00:06]} Nbd7 {[%emt 0:00:17]} 9. O-O-O {[%emt 0:00:08]} Qc7 {[%emt 0:00:03]} 10. g4 {[%emt 0:00:09]} b5 {[%emt 0:02:51]} 11. a3 {[%emt 0:00:18]} Bb7 {[%emt 0:02:03]} 12. Bxf6 {[%emt 0:04:25]} Nxf6 {[%emt 0:03:10]} 13. g5 {[%emt 0:02:35]} Nd7 {[%emt 0:01:34]} 14. h4 {[%emt 0:03:41]} Nb6 {[%emt 0:13:56]} 15. h5 {[%emt 0:09:55]} O-O-O {[%emt 0:07:13]} (15... d5 $142) 16. Bh3 {[%emt 0:25:34]} g6 {[%emt 0:07:38]} (16... Kb8 $11 {remains equal.}) 17. Rhf1 {[%emt 0:04:50]} Kb8 {[%emt 0:05:40]} 18. Kb1 {[%emt 0:03:01]} d5 {[%emt 0:05:25]} 19. exd5 {[%emt 0:04:01]} Nxd5 {[%emt 0:01:28]} 20. Nxd5 {[%emt 0:00:21]} Bxd5 {[%emt 0:01:16]} 21. Qe3 {[%emt 0:05:07]} Rc8 {[%emt 0:03:17]} 22. c3 {[%emt 0:01:22]} Qc4 {[%emt 0:01:26]} 23. Nc2 {[%emt 0:04:26]} Kb7 24. Bg4 Bc5 {[%emt 0:12:51]} 25. Qe5 {[%emt 0:12:25]} Rhd8 {[%emt 0:06:50]} 26. Be2 {[%emt 0:03:27]} Qe4 {[%emt 0:03:15]} 27. Bf3 {[%emt 0:03:04]} Qxe5 {[%emt 0:01:28]} 28. fxe5 {[%emt 0:00:05]} Bxf3 {[%emt 0:00:25]} 29. Rxd8 {[%emt 0:00:15]} Rxd8 {[%emt 0:00:54]} 30. Rxf3 {[%emt 0:00:01]} Rd7 {[%emt 0:02:36]} 31. hxg6 {[%emt 0:06:41]} hxg6 {[%emt 0:00:30]} 32. Ne3 {[%emt 0:04:59]} Bxe3 {[%emt 0:01:05]} 33. Rxe3 {[%emt 0:00:09]} Rd1+ {[%emt 0:00:35]} 34. Kc2 {[%emt 0:00:05]} Rf1 {[%emt 0:00:37]} 35. Rd3 {[%emt 0:01:47]} Rf5 {[%emt 0:04:09]} 36. Rd7+ {[%emt 0:00:18]} Kb8 {[%emt 0:03:46]} 37. Kd3 {[%emt 0:01:09]} Rxg5 {[%emt 0:03:08]} 38. Rxf7 {[%emt 0:01:46]} Rxe5 {[%emt 0:00:07]} 39. Rf6 {[%emt 0:02:08]} g5 {[%emt 0:00:33]} 40. Kd4 {[%emt 0:00:48]} Rd5+ {[%emt 0:03:38]} 41. Ke3 {[%emt 0:03:43]} Rd1 {[%emt 0:05:11]} 42. Ke2 {[%emt 0:04:09]} Rb1 {[%emt 0:01:46]} 43. Rxe6 {[%emt 0:00:17]} Rxb2+ {[%emt 0:00:06]} 44. Kd3 {[%emt 0:07:13]} Ka7 {[%emt 0:04:11]} 45. Kd4 {[%emt 0:07:23]} Ra2 {[%emt 0:04:52]} 46. Rg6 {[%emt 0:01:05]} Rxa3 {[%emt 0:00:46]} 47. Rxg5 {[%emt 0:00:29]} Kb6 {[%emt 0:02:47]} 48. Rg3 {[%emt 0:02:06]} Ka5 {[%emt 0:04:57]} 49. Kd3 {[%emt 0:00:54]} Ka4 {[%emt 0:02:21]} (49... b4 $17 50. Kd2 Ka4) 50. Rg4+ {[%emt 0:01:07]} Ka5 {[%emt 0:02:04]} 51. Kc2 {[%emt 0:00:19]} Ra2+ {[%emt 0:01:07]} 52. Kb3 {[%emt 0:00:08]} Rh2 {[%emt 0:00:14]} 53. Rg6 {[%emt 0:01:06]} Rh4 $17 {[%emt 0:01:01]} 1/2-1/2